{"text_format":"1","workbook":"xlsx","n_sheets":14,"sheets":["Protect","Publish IS (R)","Publish Com IS (R)","Publish CIE (R)","Publish BS (R)","Cash Flow Statement","Publish - Notes to result ","Segment Report (R)","Publish IS (US$)","Publish Com IS (US$)","Publish BS (US$)","Publish - Cash flow (US$)","Segment Report (US$)","Publish CIE (US$)"],"not_rendered":{"charts":0,"images":0,"macros":1,"external_links":3,"defined_names":558,"comments":2,"pivot_tables":0},"unopened":[],"bounds":{"document_bytes":16777216,"sheet_cells":100000,"rows_first":2000,"rows_last":500,"rows_between":2000,"halvings":0,"cell_chars":16384,"cell_head_chars":4096},"cells_cut":0,"cells_raw":0,"read":"whole","date_system":"1900"}

{"sheet":"Protect","index":0,"n_rows":0,"n_cols":0,"rows_kept":0,"cut":false,"hidden":true,"merged":[]}

{"sheet":"Publish IS (R)","index":1,"n_rows":376,"n_cols":9,"rows_kept":376,"cut":false,"hidden":false,"merged":[[5,2,5,4],[5,6,5,7],[73,0,77,7],[26,7,27,7],[26,0,27,0],[26,2,27,2],[26,3,27,3],[26,4,27,4],[26,6,27,6]]}
["CONDENSED CONSOLIDATED INCOME STATEMENTS (RAND)"]
[]
[]
[]
[null,null,null,null,null,null,null,null,"30"]
[null,null,"Six months ended",null,null,null,"Year ended"]
[null,null,"30 June","31 December","30 June ",null,"30 June","30 June","30 June"]
[null,null,"2016",2015,"2015",null,"2016","2015","June"]
["Figures in million","Note","(Unaudited)","(Unaudited)","(Unaudited)",null,"(Reviewed)","(Audited)","(Audited)"]
[]
[]
[]
["Revenue",null,9627,8707,7288,null,18334,15435,15435]
["Cost of sales",2,-7780,-8006,-10760,null,-15786,-19053,-19054]
[]
[]
["Production costs",null,-6535,-6715,-6018,null,-13250,-12632,-12631]
["Amortisation and depreciation",null,-1084,-1086,-1220,null,-2170,-2472,-2472]
["Reversal of impairment/(impairment) of assets",null,43,0,-3471,null,43,-3471,-3471]
["Other items",null,-204,-205,-51,0,-409,-478,-480]
[]
[]
["Gross profit/(loss)",null,1847,701,-3472,null,2548,-3618,-3619]
["Corporate, administration and other expenditure",null,-227,-182,-185,null,-409,-378,-377]
["Social investment expenditure",null,-33,-25,-32,null,-58,-71,-71]
["Exploration expenditure",null,-88,-103,-83,null,-191,-263,-263]
["Loss on scrapping of property, plant and equipment",null,-64,0,-61,null,-64,-491,0]
[null,6]
["Foreign exchange translation gain/(loss)",3,606,-798,-125,null,-192,-367]
["Other expenses (net)",null,-31,-11,-9,null,-42,-5,-378]
[]
[]
["Operating profit/(loss)",null,2010,-418,-3967,null,1592,-5193,-4702]
["Profit/(loss) from associates",7,-28,35,-25,null,7,-25,-26]
["Profit on disposal of investments",null,0,0,4,null,0,4,0]
["Net gain/(loss) on financial instruments",null,28,-13,-8,null,15,9,10]
["Investment income",null,127,114,118,null,241,229,229]
["Finance cost",null,-133,-141,-132,null,-274,-264,-263]
[]
[]
["Profit/(loss) before taxation",null,2004,-423,-4010,null,1581,-5240,-4752]
["Taxation",4,-610,-22,595,null,-632,704,703]
[]
[]
["Normal taxation",null,-122,-1,7,null,-123,5,4]
["Deferred taxation",null,-488,-21,588,null,-509,699,699]
[]
[]
["Net profit/(loss) for the period",null,1394,-445,-3415,null,949,-4536,-4049]
[]
[]
["Attributable to:"]
["Owners of the parent",null,1394,-445,-3415,null,949,-4536,-4049]
[]
[]
["Earnings/(loss) per ordinary share (cents)",5]
[]
["Basic earnings/(loss)",null,320,-102,-786,null,218,-1044,-293]
["Diluted earnings/(loss)",null,306,-102,-786,null,213,-1044,-293]
[]
[]
[]
["The accompanying notes are an integral part of these condensed consolidated financial statements."]
[]
[]
[]
[]
[]
[]
[]
[]
[]
[]
["The condensed consolidated provisional financial statements (condensed consolidated financial statements) for the year ended 30 June 2016 have been prepared by Harmony Gold Mining Company Limited’s corporate reporting team headed by Herman Perry. This process was supervised by the financial director, Frank Abbott and approved by the board of Harmony Gold Mining Company Limited on 15 August 2016. These condensed consolidated financials have been reviewed by the group's external auditors, PricewaterhouseCoopers Incorporated (see note 16)."]
[]
[]
[]
[]
[]
[]
[]
[]
[]
[]
[]
[]
[]
[]
[]
[]
[]
[]
[]
[]
[]
[]
[]
[]
[]
[]
[]
[]
[]
[]
[]
[]
[]
[]
[]
[]
[]
[]
[]
[]
[]
[]
[]
[]
[]
[]
[]
[]
[]
[]
[]
[]
[]
[]
[]
[]
[]
[]
[]
[]
[]
[]
[]
[]
[]
[]
[]
[]
[]
[]
[]
[]
[]
[]
[]
[]
[]
[]
[]
[]
[]
[]
[]
[]
[]
[]
[]
[]
[]
[]
[]
[]
[]
[]
[]
[]
[]
[]
[]
[]
[]
[]
[]
[]
[]
[]
[]
[]
[]
[]
[]
[]
[]
[]
[]
[]
[]
[]
[]
[]
[]
[]
[]
[]
[]
[]
[]
[]
[]
[]
[]
[]
[]
[]
[]
[]
[]
[]
[]
[]
[]
[]
[]
[]
[]
[]
[]
[]
[]
[]
[]
[]
[]
[]
[]
[]
[]
[]
[]
[]
[]
[]
[]
[]
[]
[]
[]
[]
[]
[]
[]
[]
[]
[]
[]
[]
[]
[]
[]
[]
[]
[]
[]
[]
[]
[]
[]
[]
[]
[]
[]
[]
[]
[]
[]
[]
[]
[]
[]
[]
[]
[]
[]
[]
[]
[]
[]
[]
[]
[]
[]
[]
[]
[]
[]
[]
[]
[]
[]
[]
[]
[]
[]
[]
[]
[]
[]
[]
[]
[]
[]
[]
[]
[]
[]
[]
[]
[]
[]
[]
[]
[]
[]
[]
[]
[]
[]
[]
[]
[]
[]
[]
[]
[]
[]
[]
[]
[]
[]
[]
[]
[]
[]
[]
[]
[]
[]
[]
[]
[]
[]
[]
[]
[]
[]
[]
[]
[]
[]
[]
[]
[]
[]
[]
[]
[]
[]
[]
[]
[]
[]
[]
[]
[]
[]
[]
[]
[]
[]
[]
[]
[null,null,null,null,null,null,null,537]

{"sheet":"Publish Com IS (R)","index":2,"n_rows":165,"n_cols":9,"rows_kept":165,"cut":false,"hidden":false,"merged":[[72,0,72,6],[44,0,45,8],[51,6,52,6],[51,3,52,3],[51,4,52,4],[51,8,52,8],[51,0,52,0],[35,0,35,8],[14,0,15,1],[14,2,15,2],[14,3,15,3],[14,4,15,4],[14,6,15,6],[14,8,15,8],[18,2,19,2],[18,3,19,3],[0,0,1,8],[18,4,19,4],[18,6,19,6],[18,8,19,8],[18,0,19,1],[6,2,6,4],[6,6,6,8]]}
["CONDENSED CONSOLIDATED STATEMENTS OF COMPREHENSIVE INCOME (RAND)"]
[]
[]
[]
[]
[]
[null,null,"Six months ended",null,null,null,"Year ended"]
[null,null,"30 June","31 December","30 June ",null,"30 June",null,"30 June"]
[null,null,"2016",2015,"2015",null,"2016",null,"2015"]
["Figures in million",null,"(Unaudited)","(Unaudited)","(Unaudited)",null,"(Reviewed)",null,"(Audited)"]
[]
[]
[]
["Net profit/(loss) for the period",null,1394,-445,-3415,null,949,null,-4536]
["Other comprehensive income/(loss) for the period, net of income tax",null,-329,472,-6,null,143,0,59]
[]
[]
[]
["Items that may be reclassified subsequently to profit or loss:",null,-333,472,-11,null,139,0,54]
[]
["Foreign exchange translation gain/(loss)",null,-333,472,-11,null,139,null,54]
[]
["Items that will not be reclassified to profit or loss:",null,4,0,5,null,4,null,5]
["Remeasurement of retirement benefit obligation"]
["   Actuarial gain recognised during the year",null,3,0,8,null,3,null,8]
["   Deferred taxation thereon",null,1,0,-3,null,1,null,-3]
[]
[]
["Total comprehensive income/(loss) for the period",null,1065,27,-3421,null,1092,null,-4477]
[]
[]
[]
["Attributable to:"]
["Owners of the parent",null,1065,27,-3421,null,1092,null,-4477]
[]
[]
["The accompanying notes are an integral part of these condensed consolidated financial statements."]
[]
[]
[]
[]
[]
[]
[]
["CONDENSED CONSOLIDATED STATEMENTS OF CHANGES IN EQUITY (RAND)"]
[]
["for the year ended 30 June 2016"]
[]
[]
[]
[]
["Figures in million",null,null,"Share capital","Other reserves",null,"Accumulated loss",null,"Total"]
[]
[]
["Balance - 30 June 2015",null,null,28324,3787,null,-5358,null,26753]
["Share-based payments",null,null,0,322,null,0,null,322]
["Reversal of provision for odd lot repurchases",null,null,12,0,null,0,null,12]
["Net profit for the period",null,null,0,0,null,949,null,949]
["Other comprehensive income for the period",null,null,0,143,null,0,null,143]
[]
[]
["Balance - 30 June 2016 (Reviewed)",null,null,28336,4252,null,-4409,null,28179]
[]
[]
["Balance - 30 June 2014",null,null,28325,3539,null,-822,null,31042]
["Share-based payments",null,null,-1,189,null,0,null,188]
["Net loss for the period",null,null,0,0,null,-4536,null,-4536]
["Other comprehensive income for the period",null,null,0,59,null,0,null,59]
[]
[]
["Balance - 30 June 2015 (Audited)",null,null,28324,3787,null,-5358,null,26753]
[]
[]
["The accompanying notes are an integral part of these condensed consolidated financial statements."]
[]
[]
[]
[]
[]
[]
[]
[]
[]
[]
[]
[]
[]
[]
[]
[]
[]
[]
[]
[]
[]
[]
[]
[]
[]
[]
[]
[]
[]
[]
[null,null,null,null,1]
[]
[]
[]
[]
[]
[]
[]
[]
[]
[]
[null,null,null,null,null,null,null,null," "]
[]
[]
[]
[]
[]
[]
[]
[]
[]
[]
[]
[]
[]
[]
[]
[]
[]
[]
[]
[]
[]
[]
[]
[]
[]
[]
[]
[]
[]
[]
[]
[]
[]
[]
[]
[]
[]
[]
[]
[]
[]
[]
[]
[]
[]
[]
[]
[]
[null,null,"Total diluted earnings"]

{"sheet":"Publish CIE (R)","index":3,"n_rows":406,"n_cols":14,"rows_kept":406,"cut":false,"hidden":true,"merged":[[29,1,29,7],[0,1,1,7]]}
[null,"CONDENSED CONSOLIDATED STATEMENTS OF CHANGES IN EQUITY (RAND)"]
[]
[null,"for the year ended 30 June 2016"]
[]
[]
[]
[]
[null,"Figures in million",null,null,"Share capital","Other reserves","Accumulated loss","Total"]
[]
[]
[null,"Balance - 30 June 2015",null,null,{"$f":"E28","v":28324},3787,-5358,{"$f":"SUM(E11:G11)","v":26753}]
["BB210500     ","Share-based payments",null,null,0,{"$f":"ROUND((ROUND(#REF!,0)-ROUND(#REF!,0))/1000000,0)","v":{"$error":"#REF!"}},0,{"$f":"SUM(E12:G12)","v":{"$error":"#REF!"}}]
[null,"Reversal of provision for odd lot repurchases",null,null,12,0,0,{"$f":"SUM(E13:G13)","v":12}]
[null,"Net profit for the period",null,null,0,0,{"$f":"'Publish IS (R)'!G49","v":949},{"$f":"SUM(E14:G14)","v":949}]
[null,"Other comprehensive income for the period",null,null,0,{"$f":"ROUND('Publish Com IS (R)'!G15,0)","v":143},0,{"$f":"SUM(E15:F15)","v":143}]
["BB550000     ","Dividends paid",null,null,0,0,{"$f":"ROUND(SUMIF(Cognos_BS_Acc,$A16,Cognos_BS_Amt1)/1000000,0)+1","v":{"$error":"#NAME?"}},{"$f":"SUM(E16:G16)","v":{"$error":"#NAME?"}}]
[]
[]
["BB100000     ","Balance - 30 June 2016 (Reviewed)",null,null,{"$f":"SUM(E11:E15)","v":28336},{"$f":"SUM(F11:F15)","v":{"$error":"#REF!"}},{"$f":"SUM(G11:G15)","v":-4409},{"$f":"ROUND(SUM(H11:H15),0)","v":{"$error":"#REF!"}}]
[]
[]
[null,"Balance - 30 June 2014",null,null,28325,3539,-822,{"$f":"SUM(E22:G22)","v":31042}]
[null,"Share-based payments",null,null,-1,189,0,{"$f":"SUM(E23:G23)","v":188}]
[null,"Net loss for the period",null,null,0,0,-4536,-4536]
[null,"Other comprehensive income for the period",null,null,0,59,0,59]
[]
[]
[null,"Balance - 30 June 2015 (Audited)",null,null,{"$f":"SUM(E22:E25)","v":28324},{"$f":"SUM(F22:F25)","v":3787},{"$f":"SUM(G22:G25)","v":-5358},{"$f":"SUM(H22:H25)","v":26753}]
[]
[]
[null,"The accompanying notes are an integral part of these condensed consolidated financial statements."]
[]
[]
[]
[]
[]
[]
[]
[]
[]
[]
[]
[]
[]
[]
[]
[]
[]
[]
[]
[]
[]
[]
[]
[]
[]
[]
[]
[]
[null,null,null,null,null,{"$f":"ROUND(SUMIF(#REF!,$A60,#REF!)/1000000,0)","v":{"$error":"#REF!"}}]
[]
[]
[]
[]
[]
[]
[]
[]
[]
[]
[]
[]
[]
[]
[]
[]
[]
[]
[]
[]
[]
[]
[]
[]
[]
[]
[]
[]
[]
[]
[]
[]
[]
[]
[]
[]
[]
[]
[]
[]
[]
[]
[]
[]
[]
[]
[]
[]
[]
[]
[]
[]
[]
[]
[]
[]
[]
[]
[]
[]
[]
[]
[]
[]
[]
[]
[]
[]
[]
[]
[]
[]
[]
[]
[]
[]
[]
[]
[]
[]
[]
[]
[]
[]
[]
[]
[]
[]
[]
[]
[]
[]
[]
[]
[]
[]
[]
[]
[]
[]
[]
[]
[]
[]
[]
[]
[]
[]
[]
[]
[]
[]
[]
[]
[]
[]
[]
[]
[]
[]
[]
[]
[]
[]
[]
[]
[]
[]
[]
[]
[]
[]
[]
[]
[]
[]
[]
[]
[]
[]
[]
[]
[]
[]
[]
[]
[]
[]
[]
[]
[]
[]
[]
[]
[]
[]
[]
[]
[]
[]
[]
[]
[]
[]
[]
[]
[]
[]
[]
[]
[]
[]
[]
[]
[]
[]
[]
[]
[]
[]
[]
[]
[]
[]
[]
[]
[]
[]
[]
[]
[]
[]
[]
[]
[]
[]
[]
[]
[]
[]
[]
[]
[]
[]
[]
[]
[]
[]
[]
[]
[]
[]
[]
[]
[]
[]
[]
[]
[]
[]
[]
[]
[]
[]
[]
[]
[]
[]
[]
[]
[]
[]
[]
[]
[]
[]
[]
[]
[]
[]
[]
[]
[]
[]
[]
[]
[]
[]
[]
[]
[]
[]
[]
[]
[]
[]
[]
[]
[]
[]
[]
[]
[]
[]
[]
[]
[]
[]
[]
[]
[]
[]
[]
[]
[]
[]
[]
[]
[]
[]
[]
[]
[]
[]
[]
[]
[]
[]
[]
[]
[]
[]
[]
[]
[]
[]
[]
[]
[]
[]
[]
[]
[]
[]
[]
[]
[]
[]
[]
[]
[]
[]
[]
[]
[]
[]
[]
[]
[]
[]
[]
[]
[]
[]
[]
[]
[]
[]
[]
[]
[]
[]
[]
[]
[]
[]
[]
[]
[]
[]
[]
[]
[null,null,null,null,null,null,null,null,null,null,null,null,245]
[null,null,null,null,null,null,null,null,null,null,null,null,491]
[]
[null,null,null,null,null,null,null,null,null,null,null,null,null,537]

{"sheet":"Publish BS (R)","index":4,"n_rows":91,"n_cols":7,"rows_kept":91,"cut":false,"hidden":false,"merged":[]}
["CONDENSED CONSOLIDATED BALANCE SHEETS (RAND)"]
[]
[]
[]
[]
[null,null,null,"At","At","At"]
[null,null,null,"30 June","31 December","30 June"]
[null,null,null,2016,2015,2015]
["Figures in million",null,"Note","(Reviewed)","(Unaudited)","(Audited)"]
[]
[]
["ASSETS"]
[]
["Non-current assets"]
[]
["Property, plant and equipment",null,6,29919,30101,29548,89568]
["Intangible assets",null,null,870,878,885,2633]
["Restricted cash",null,null,62,55,48,165]
["Restricted investments",null,null,2496,2434,2384,7314]
["Investments in associates",null,7,0,10,0]
["Investments in financial assets",null,null,5,5,5]
["Inventories",null,null,37,36,36,109]
["Other non-current receivables",null,12,172,74,80,326]
[null,null,null,null,null,0]
[null,null,null,null,null,0]
["Total non-current assets",null,null,33561,33593,32986]
[null,null,null,null,null,0]
[null,null,null,null,null,0]
[]
["Current assets"]
[null,null,null,null,null,0]
["Inventories",null,null,1167,1260,1292]
["Trade and other receivables",null,7,654,658,746]
["Income and mining taxes",null,4,6,11,30,47]
["Derivative financial assets",null,3,369,0,0]
["Restricted cash",null,null,17,16,16]
["Cash and cash equivalents",null,null,1256,876,1067,3199]
[null,null,null,null,null,0]
[]
["Total current assets",null,null,3469,2821,3151]
[]
[null,null,null,null,null,0]
["Total assets",null,null,37030,36414,36137]
[null,null,null,null,null,0]
[]
[]
["EQUITY AND LIABILITIES"]
[]
["Share capital and reserves"]
[null,null,null,null,null,0]
["Share capital",null,null,28336,28324,28324]
["Other reserves",null,null,4252,4358,3787,12397]
["Accumulated loss",null,null,-4409,-5803,-5358,-15570]
[null,null,null,null,null,0]
[null,null,null,null,null,0]
["Total equity",null,null,28179,26879,26753]
[null,null,null,null,null,0]
[null,null,null,null,null,0]
[]
["Non-current liabilities"]
[null,null,null,null,null,0]
["Deferred tax liabilities",null,null,2413,1926,1906]
["Provision for environmental rehabilitation",null,null,2183,2364,2218,6765]
["Retirement benefit obligation",null,null,169,170,163,502]
["Other non-current liabilities",null,null,16,41,37]
["Borrowings",null,8,2039,3092,3399,8530]
[null,null,null,null,null,0]
[null,null,null,null,null,0]
["Total non-current liabilities",null,null,6820,7593,7723]
[null,null,null,null,null,0]
[null,null,null,null,null,0]
[]
["Current liabilities"]
[null,null,null,null,null,0]
["Borrowings",null,8,300,299,0,599]
["Income and mining taxes",null,4,40,1,1,42]
["Trade and other payables",null,null,1691,1642,1660,4993]
[null,null,null,null,null,0]
[null,null,null,null,null,0,0]
[null,null,null,2031,1942,1661,0]
[null,null,null,null,null,0,0]
[null,null,null,null,null,0]
["Total current liabilities",null,null,2031,1942,1661]
[null,null,null,null,null,0]
[null,null,null,null,null,0]
["Total equity and liabilities",null,null,37030,36414,36137]
[]
[]
["The accompanying notes are an integral part of these condensed consolidated financial statements."]
[]
[null,null,null,0,0,0]

{"sheet":"Cash Flow Statement","index":5,"n_rows":53,"n_cols":10,"rows_kept":53,"cut":false,"hidden":false,"merged":[[16,0,16,1],[30,0,30,1],[33,0,33,1],[22,0,22,1],[14,0,14,1],[5,4,5,6],[12,0,12,1],[13,0,13,1],[5,8,5,9],[0,0,1,9]]}
["CONDENSED CONSOLIDATED CASH FLOW STATEMENTS (RAND)"]
[]
[]
[]
[]
[null,null,null,null,"Six months ended ",null,null,null,"Year ended"]
[null,null,null,null,"30 June","31 December","30 June ",null,"30 June","30 June"]
[null,null,null,null,"2016",2015,"2015",null,"2016","2015"]
["Figures in million",null,null,"Note","(Unaudited)","(Unaudited)","(Unaudited)",null,"(Reviewed)","(Audited)"]
[]
[]
[]
["Cash flow from operating activities"]
["Cash generated by operations",null,null,null,2923,1736,921,null,4659,1928]
["Interest and dividends received",null,null,null,27,47,46,null,74,101]
["Interest paid",null,null,null,-116,-39,-62,null,-155,-108]
["Income and mining taxes (paid)/refunded",null,null,null,-83,18,21,null,-65,85]
[null,null,null,null,null,null,null,null,null,0]
[null,null,null,null,null,null,null,null,null,0]
["Cash generated by operating activities",null,null,null,2751,1762,926,null,4513,2006]
[null,null,null,null,null,null,null,null,null,0]
[null,null,null,null,null,null,null,null,null,0]
["Cash flow from investing activities"]
["(Increase)/decrease in restricted cash",null,null,null,-5,-7,8,null,-12,8]
["Decrease in restricted investments",null,null,null,36,3,30,null,39,31]
["(Increase)/decrease in loan to associate",null,null,null,0,7,0,null,7,-120]
["Loan to ARM BBEE Trust",null,null,12,-200,0,0,null,-200,0]
["Net additions to property, plant and equipment",null,null,10,-1265,-1168,-1428,null,-2433,-2827]
[null,null,null,null,null,null,null,null,null,0]
[null,null,null,null,null,null,null,null,null,0]
["Cash utilised by investing activities",null,null,null,-1434,-1165,-1390,null,-2599,-2908]
[null,null,null,null,null,null,null,null,null,0]
[null,null,null,null,null,null,null,null,null,0]
["Cash flow from financing activities"]
["Borrowings raised",null,null,8,0,300,941,null,300,941]
["Borrowings repaid",null,null,8,-928,-1117,-793,null,-2045,-793]
[null,null,null,null,null,null,null,null,null,0]
[null,null,null,null,null,null,null,null,null,0]
["Cash generated/(utilised) by financing activities",null,null,null,-928,-817,148,null,-1745,148]
[null,null,null,null,null,null,null,null,null,0]
[null,null,null,null,null,null,null,null,null,0]
["Foreign currency translation adjustments",null,null,null,-9,29,9,null,20,-8]
[]
[null,null,null,null,null,null,null,null,null,0]
["Net increase/(decrease) in cash and cash equivalents",null,null,null,380,-191,-307,null,189,-762]
["Cash and cash equivalents - beginning of period",null,null,null,876,1067,1374,null,1067,1829]
[null,null,null,null,null,null,null,null,null,0]
[null,null,null,null,null,null,null,null,null,0]
["Cash and cash equivalents - end of period",null,null,null,1256,876,1067,null,1256,1067]
[]
[]
[]
["The accompanying notes are an integral part of these condensed consolidated financial statements."]

{"sheet":"Publish - Notes to result ","index":6,"n_rows":408,"n_cols":15,"rows_kept":408,"cut":false,"hidden":false,"merged":[[70,2,76,14],[43,2,45,14],[162,2,165,14],[159,2,161,14],[156,2,158,14],[120,14,121,14],[55,9,56,9],[55,14,56,14],[55,13,56,13],[55,11,56,11],[55,10,56,10],[170,2,174,14],[167,2,168,14],[117,1,118,8],[117,9,118,9],[117,10,118,10],[117,11,118,11],[117,13,118,13],[0,0,1,14],[8,1,15,14],[114,1,115,8],[114,9,115,9],[114,10,115,10],[114,11,115,11],[114,13,115,13],[114,14,115,14],[19,9,19,11],[49,9,49,11],[49,13,49,14],[81,1,82,14],[19,13,19,14],[39,2,41,14],[84,1,86,14],[55,1,56,8],[244,2,245,14],[299,2,302,14],[259,14,260,14],[259,13,260,13],[259,1,260,8],[259,9,260,9],[246,2,247,14],[261,14,262,14],[261,1,262,8],[261,9,262,9],[261,10,262,10],[261,11,262,11],[261,13,262,13],[232,14,234,14],[186,1,191,14],[195,1,197,14],[211,1,212,14],[226,6,227,14],[206,14,207,14],[206,1,207,6],[243,2,243,14],[90,9,90,11],[117,14,118,14],[120,1,121,8],[120,9,121,9],[120,10,121,10],[120,11,121,11],[120,13,121,13],[178,2,182,14],[152,3,154,14],[90,13,90,14],[133,2,136,14],[148,2,149,14],[232,10,234,10],[232,11,234,11],[232,13,234,13],[343,2,345,14],[304,2,305,14],[407,1,409,14],[252,9,252,11],[252,13,252,14],[387,1,387,14],[363,13,363,14],[369,1,372,11],[294,1,295,14],[309,1,310,14],[259,10,260,10],[259,11,260,11],[331,2,338,14]]}
["NOTES TO THE CONDENSED CONSOLIDATED FINANCIAL STATEMENTS "]
[]
["for the year ended 30 June 2016 (Rand)"]
[]
[]
[1,"Accounting policies"]
[]
[null,"Basis of accounting"]
[null,"The condensed consolidated financial statements for the year ended 30 June 2016 are prepared in accordance with the requirements of the JSE Limited Listings Requirements for provisional reports and the requirements of the Companies Act of South Africa. The Listings Requirements require provisional reports to be prepared in accordance with the framework concepts and the measurement and recognition requirements of International Financial Reporting Standards (IFRS) as issued by the International Accounting Standards Board (IASB) and the SAICA Financial Reporting Guides as issued by the Accounting Practices Committee and Financial Pronouncements as issued by the Financial Reporting Standards Council and to also, as a minimum, contain the information required by IAS 34 Interim Financial Reporting. The accounting policies applied in the preparation of the condensed consolidated financial statements are in terms of IFRS and are consistent with those applied in the previous consolidated annual financial statements."]
[]
[]
[]
[]
[]
[]
[]
[]
[2,"Cost of sales"]
[]
[null,null,null,null,null,null,null,null,null,"Six months ended",null,null,null,"Year ended"]
[null,null,null,null,null,null,null,null,null,"30 June","31 December","30 June ",null,"30 June","30 June"]
[null,null,null,null,null,null,null,null,null,"2016",2015,"2015",null,"2016","2015"]
[null,"Figures in million",null,null,null,null,null,null,null,"(Unaudited)","(Unaudited)","(Unaudited)",null,"(Reviewed)","(Audited)"]
[]
[]
[null,"Production costs - excluding royalty",null,null,null,null,null,null,null,6427,6652,5976,null,13079,12537]
[null,"Royalty expense",null,null,null,null,null,null,null,108,63,42,null,171,95]
[null,"Amortisation and depreciation",null,null,null,null,null,null,null,1084,1086,1220,null,2170,2472]
[null,"(Reversal of impairment)/impairment of assets1",null,null,null,null,null,null,null,-43,0,3471,null,-43,3471]
[null,"Rehabilitation expenditure/(credit)2",null,null,null,null,null,null,null,-69,28,-26,null,-41,-6]
[null,"Care and maintenance cost of restructured shafts",null,null,null,null,null,null,null,56,58,69,null,114,106]
[null,"Employment termination and restructuring costs",null,null,null,null,null,null,null,1,15,21,null,16,251]
[null,"Share-based payments3",null,null,null,null,null,null,null,224,105,68,null,329,208]
[null,"Other",null,null,null,null,null,null,null,-8,-1,-81,null,-9,-81]
[]
[]
[null,"Total cost of sales",null,null,null,null,null,null,null,7780,8006,10760,null,15786,19053]
[]
[]
[null,1,"The net reversal of impairment of long-lived assets in the June 2016 period consists of a reversal of impairment of R738 million on Doornkop, offset by an impairment of R466 million on Hidden Valley and R229 million on Masimong. The June 2015 impairment consists of an impairment of R2.11 billion on Hidden Valley, R1.04 billion on Doornkop, R278 million on Phakisa and R43 million on Freddies 9. Refer to note 6 for further details."]
[]
[]
[null,2,"Included in the total for the June 2016 period is a credit of R110 million relating to the change in estimate following the annual reassessment."]
[null,3,"Due to the low share price at the time of the awarding of performance shares (PS) for 2015, a large number of PS were allocated to employees. The increase in the share price between the award date and the approval date resulted in an increase in the IFRS 2 Share-based payment fair value per award measurement."]
[]
[]
[]
[3,"Foreign exchange translation gain/(loss)"]
[]
[null,null,null,null,null,null,null,null,null,"Six months ended",null,null,null,"Year ended"]
[null,null,null,null,null,null,null,null,null,"30 June","31 December","30 June ",null,"30 June","30 June"]
[null,null,null,null,null,null,null,null,null,"2016",2015,"2015",null,"2016","2015"]
[null,"Figures in million",null,null,null,null,null,null,null,"(Unaudited)","(Unaudited)","(Unaudited)",null,"(Reviewed)","(Audited)"]
[]
[]
[null,"Translation gain/(loss) on US$ revolving credit facility (a)",null,null,null,null,null,null,null,135,-800,-122,null,-665,-382]
[]
[null,"Unrealised derivative gain (b)",null,null,null,null,null,null,null,369,0,0,null,369,0]
[null,"Realised derivative gain (b)",null,null,null,null,null,null,null,77,0,0,null,77,0]
[null,"Other",null,null,null,null,null,null,null,25,2,-3,null,27,15]
[]
[]
[null,"Total foreign exchange translation gain/(loss)",null,null,null,null,null,null,null,606,-798,-125,null,-192,-367]
[]
[]
[null,"Rand/US$ exchange rate:"]
[null,"Closing/spot at",null,null,null,null,null,null,null,14.72,15.62,12.16,null,14.72,12.16]
[null,"Average",null,null,null,null,null,null,null,15.39,13.62,11.91,null,14.5,11.45]
[]
[null,"a)","Refer to note 8 for details on the US$ revolving credit facility."]
[null,"b) ","During February 2016, Harmony entered into foreign exchange hedging contracts (forex hedging contracts) in the form of zero cost collars, which establish a minimum (floor) and maximum (cap) Rand/US Dollar exchange rate at which to convert US dollars to Rands. The nominal value of open forex hedging contracts at 30 June 2016 is US$500 million. The hedging contracts are spread over a 12 month period with a weighted average cap price of US$1=R18.27 and weighted average floor price of US$1=R15.55. The mark-to-market of the derivative asset is R369 million as at 30 June 2016 due to the strengthening of the Rand exchange rate against the US dollar since the conclusion of the forex hedging contracts. As we do not apply hedge accounting, the gains have been recorded in the income statement."]
[]
[]
[]
[]
[]
[]
[]
[]
[4,"Taxation"]
[]
[null,"Normal taxation expense increased during the year ended 30 June 2016 due to the increased profitability at most of the South African operations and the inclusion of the unrealised derivative gain of R369 million in determining taxable income."]
[]
[]
[null,"The deferred tax expense increased during 2016 due to the net increase in the deferred tax rates year on year and utilisation of assessed losses and unredeemed capital by the South African companies. The weighted average deferred tax rates for most South African companies increased as a result of increased forecast profitability of these operations."]
[]
[]
[]
[5,"Earnings/(loss) per share"]
[]
[null,null,null,null,null,null,null,null,null,"Six months ended",null,null,null,"Year ended"]
[null,null,null,null,null,null,null,null,null,"30 June","31 December","30 June ",null,"30 June","30 June"]
[null,null,null,null,null,null,null,null,null,"2016",2015,"2015",null,"2016","2015"]
[null,null,null,null,null,null,null,null,null,"(Unaudited)","(Unaudited)","(Unaudited)",null,"(Reviewed)","(Audited)"]
[]
[]
[null,"Weighted average number of shares (million)",null,null,null,null,null,null,null,436.29543268681317,435.2,434.7,null,435.7,434.4]
[null,"Weighted average number of diluted shares (million)",null,null,null,null,null,null,null,455.88551886032047,436.9,438.6,null,446.4,438.1]
[null,"Total earnings/(loss) per share (cents):"]
[]
[null,"Basic earnings/(loss)",null,null,null,null,null,null,null,320,-102,-786,null,218,-1044]
[null,"Diluted earnings/(loss)",null,null,null,null,null,null,null,306,-102,-786,null,213,-1044]
[null,"Headline earnings/(loss)",null,null,null,null,null,null,null,324,-103,-16,null,221.33874909042919,-189]
[null,"Diluted headline earnings/(loss)",null,null,null,null,null,null,null,310,-103,-16,null,216.03336240748209,-189]
[]
[]
[null,"Figures in million"]
[]
[null,"Reconciliation of headline earnings/(loss):"]
[]
[null,"Net profit/(loss)",null,null,null,null,null,null,null,1394,-445,-3415,null,949,-4536]
[null,"Adjusted for:"]
[null,"Profit on disposal of investments1",null,null,null,null,null,null,null,0,0,-4,null,0,-4]
[null,"Reversal of impairment/(impairment) of assets",null,null,null,null,null,null,null,-42.633681000000038,0,3471,null,-42.633681000000038,3471]
[null,"Taxation effect on reversal of impairment/(impairment) of assets",null,null,null,null,null,null,null,12.006610787000005,0,-169,null,12.006610787000005,-169]
[]
[null,"Profit on sale of property, plant and equipment",null,null,null,null,null,null,null,-3,-4,-5,null,-7,-6]
[null,"Taxation effect on profit on sale of property, plant and equipment",null,null,null,null,null,null,null,0,0,-1,null,1,-1]
[]
[null,"Loss on scrapping of property, plant and equipment",null,null,null,null,null,null,null,64,0,61,null,64,491]
[null,"Taxation effect on loss on scrapping of property, plant and equipment",null,null,null,null,null,null,null,-12,0,-9,null,-12,-67]
[]
[]
[]
[null,"Headline earnings/(loss)",null,null,null,null,null,null,null,1412.372929787,-449,-71,null,964.37292978699998,-821]
[]
[]
[null,"1 There is no taxation effect on this item."]
[]
[6,"Property, plant and equipment"]
[]
[null,"(a) ","Impairment/reversal of impairment"]
[]
[null,null,"One of the most significant assumptions that influence the Group's operations' life-of-mine plans and therefore impairment is the expected gold price. During this year's planning and testing, commodity price and exchange rate assumptions as per the table below were used. Post-tax real discount rates ranging between 8.43% and 11.77% (2015: 7.99% and 12.03%), depending on the asset, were used to determine the recoverable amounts (generally fair value less costs to sell)."]
[]
[]
[]
[]
[null,null,null,null,null,null,null,null,null,null,null,null,null,null,"2017 onwards"]
[]
[]
[null,"US$ gold price ($/ounce)",null,null,null,null,null,null,null,null,null,null,null,null,1189]
[null,"US$ silver price ($/ounce)",null,null,null,null,null,null,null,null,null,null,null,null,17.8]
[null,"Exchange rate (R/US$)",null,null,null,null,null,null,null,null,null,null,null,null,13.86]
[null,"Exchange rate (PGK/US$)",null,null,null,null,null,null,null,null,null,null,null,null,3.1]
[null,"Rand gold price (R/Kg)",null,null,null,null,null,null,null,null,null,null,null,null,530000]
[]
[]
[null,null,"For South African operations, values of US$40.86, US$23.35 and US$5.84 per ounce were used for measured, indicated and inferred resources, respectively. For Hidden Valley, US$5.84 per ounce was used for indicated and inferred resources."]
[]
[]
[]
[]
[]
[]
[null,null,"The annual impairment assessment performed resulted in a net reversal of impairment of R43 million for the 2016 financial year."]
[null,"• ","A reversal of R738 million was recorded for Doornkop mainly due to the increased Rand gold price assumption, improvements in operational efficiencies following the restructuring in 2015 and new areas included in the life-of-mine plan based on additional exploration performed during 2016. The recoverable amount is R2.8 billion."]
[]
[]
[null,"• ","An impairment of R466 million was recorded for Hidden Valley. The updated life-of-mine plan for Hidden Valley results in lower production in 2017 as the mine undergoes processing of ore stockpiles and a period of care and maintenance, with stripping activities for stage 5 planned to recommence in the 2018 financial year. The recoverable amount is R319 million (US$21.7 million)."]
[]
[]
[null,"• ","An impairment of R229 million was recorded for Masimong which has a remaining life of mine of three years. The exploration programme to find additional areas of the higher grade B Reef proved unsuccessful and was stopped during 2016. In addition, the grade estimation of the Basal Reef decreased and as a result a portion of the resource was abandoned at 30 June 2016. The recoverable amount is R472 million."]
[]
[]
[]
[]
[null,null,"The recoverable amounts for these assets were determined on a fair value less costs to sell basis using the assumptions above in discounted cash flow models and attributable resource values. These are fair value measurements classified as level 3."]
[]
[]
[null,null,"The sensitivity scenario of a 10% decrease in the commodity price used in the discounted cash flow models and the resource values used (with all other variables held constant) would have resulted in an additional impairment at Hidden Valley of R319 million and Masimong of R281 million. The decreases noted would have resulted in impairments at Unisel of R162 million, Free State surface assets of R141 million, Other Harmony assets of R46 million and Doornkop of R15 million (as opposed to the reversal recorded of R738 million)."]
[]
[]
[]
[]
[]
[null,"(b) ","Loss on scrapping of property, plant and equipment"]
[]
[null,null,"At 30 June 2016, following the annual life-of-mine planning, an amount of R64 million (2015: R491 million) was recorded for various operations as a result of the abandonment of uneconomical areas in the life-of-mine plans of those operations. The abandonment of unprofitable areas in the plans resulted in the derecognition of property, plant and equipment as no future economic benefits are expected from their use or disposal. For June 2015, the scrapping loss recorded mainly related to the life-of-mine optimisation process finalised in December 2014 which resulted in the abandoning of shaft levels and raise lines at Kusasalethu and Masimong."]
[]
[]
[]
[]
[]
[7,"Investment in associate"]
[]
[null,"Harmony's gross portion of the subordinated shareholders' loan extended to Rand Refinery Proprietary Limited (Rand Refinery) in December 2014 amounts to R120 million. This loan forms part of the net investment in associate. At 30 June 2016, Harmony set off its share of profits from associate of R7 million against its share of losses of R25 million recorded against the loan in 2015, as well as an additional provision for impairment of R25 million (2015: R15 million). The recoverable amount of the loan at 30 June 2016 is R62 million (2015: R80 million). The fair value measurement of the net investment is classified as level 3 and is non-recurring. The loan is due in December 2016 and has been included in Other receivables - current."]
[]
[]
[]
[]
[]
[]
[8,"Borrowings"]
[]
[null,"During the 2016 financial year R300 million and R400 million was raised and repaid respectively on the R1.3 billion Nedbank revolving credit facility. US$110 million (R1 645 million) was repaid on the US$ revolving credit facility. Refer to note 3 for details on the foreign exchange translation movement."]
[]
[]
[]
[null,null,null,null,null,null,null,null,null,null,null,null,null,"US$ facility","Rand facility"]
[null,"Figures in million",null,null,null,null,null,null,null,null,null,null,null,"US dollar","SA rand"]
[]
[null,"Borrowings summary at 30 June 2016"]
[null,"Facility",null,null,null,null,null,null,null,null,null,null,null,250,1300]
[null,"Drawn down",null,null,null,null,null,null,null,null,null,null,null,140,300]
[null,"Undrawn committed borrowing facilities",null,null,null,null,null,null,null,null,null,null,null,110,1000]
[null,"Maturity",null,null,null,null,null,null,null,null,null,null,null,"February ","December 2016"]
[null,null,null,null,null,null,null,null,null,null,null,null,null,"2018"]
[null,"Interest rate",null,null,null,null,null,null,null,null,null,null,null,"LIBOR + 3%","JIBAR + 3.5%"]
[]
[]
[null,"At 30 June 2016, the drawn amount of R300 million on the Nedbank facility is repayable within 12 months and has been reclassified as current. Refer to note 13 for events after reporting date."]
[]
[]
[]
[]
[]
[]
[9,"Financial risk management activities"]
[]
[null,"Fair value determination"]
[]
[null,"The fair value levels of hierarchy are as follows:"]
[]
[]
[null,"Level 1:",null,null,null,null,"Quoted prices (unadjusted) in active markets for identical assets;"]
[null,"Level 2:",null,null,null,null,"Inputs other than quoted prices included within level 1 that are observable for the asset, either directly or indirectly (that is, as prices) or indirectly (that is derived from prices);"]
[]
[null,"Level 3:",null,null,null,null,"Inputs for the asset that are not based on observable market data (that is unobservable inputs)."]
[]
[null,"The following table presents the group's assets and liabilities that are measured at fair value at reporting date:"]
[]
[null,null,null,null,null,null,null,null,null,null,"Fair value hierarchy  level","At 30 June 2016",null,"At 31 December 2015","At 30 June 2015"]
[]
[]
[]
[null,"Available-for-sale financial assets"]
[null,"Investment in financial assets1",null,null,null,null,null,null,null,null,"Level 3",5,null,5,5]
[null,"Fair value through profit or loss"]
[null,"Restricted investments2",null,null,null,null,null,null,null,null,"Level 2",640,null,614,538]
[null,"Derivative assets3",null,null,null,null,null,null,null,null,"Level 2",369,null,0,0]
[]
[]
[null,"1","Level 3 fair values have been valued by the directors by performing independent valuations on an annual basis."]
[null,"2 ","The majority of the level 2 fair values are directly derived from the Top 40 index on the JSE, and are discounted at market interest rate. This relates to equity-linked deposits in the group's environmental rehabilitation trust funds."]
[]
[null,"3","The mark-to-market remeasurement of the forex hedging contracts (zero cost collars) is derived from a Black-Scholes valuation technique, derived from spot Rand/US$ exchange rate inputs and discounted at market interest rate."]
[]
[null,"For all other financial instruments, fair value approximates carrying value."]
[]
[10,"Net additions to property, plant and equipment"]
[]
[null,null,null,null,null,null,null,null,null,"Six months ended",null,null,null,"Year ended"]
[null,null,null,null,null,null,null,null,null,"30 June","31 December","30 June ",null,"30 June","30 June"]
[null,null,null,null,null,null,null,null,null,"2016",2015,"2015",null,"2016","2015"]
[null,"Figures in million",null,null,null,null,null,null,null,"(Unaudited)","(Unaudited)","(Unaudited)",null,"(Reviewed)","(Audited)"]
[]
[]
[null,"Capital expenditure - operations",null,null,null,null,null,null,null,1125,1027,1191,null,2152,2470]
[null,"Capital and capitalised exploration and evaluation expenditure for Golpu",null,null,null,null,null,null,null,125.53956666232878,114,105,null,240,119]
[]
[null,"Additions resulting from stripping activities at Hidden Valley",null,null,null,null,null,null,null,14.410398095000001,28,138,null,42.486905511000003,236]
[]
[null,"Other",null,null,null,null,null,null,null,0,-1,-6,null,-1,2]
[]
[]
[null,"Net additions",null,null,null,null,null,null,null,1265,1168,1428,null,2433,2827]
[]
[]
[11,"Commitments and contingencies"]
[]
[null,null,null,null,null,null,null,null,null,null,null,"At",null,"At","At"]
[null,null,null,null,null,null,null,null,null,null,null,"30 June",null,"31 December","30 June"]
[null,null,null,null,null,null,null,null,null,null,null,2016,null,2015,"2015"]
[null,"Figures in million",null,null,null,null,null,null,null,null,null,"(Reviewed)",null,"(Unaudited)","(Audited)"]
[]
[]
[null,"Capital expenditure commitments:"]
[null,"Contracts for capital expenditure",null,null,null,null,null,null,null,null,null,264,null,166,158]
[null,"Authorised by the directors but not contracted for",null,null,null,null,null,null,null,null,null,516,null,1607,257]
[]
[null,null,null,null,null,null,null,null,null,null,null,"xx"]
[null,null,null,null,null,null,null,null,null,null,null,780,null,1773,415]
[]
[]
[null,"This expenditure will be financed from existing resources and, where appropriate, borrowings."]
[]
[]
[]
[]
[]
[]
[null,"Contingent liabilities"]
[]
[null,"For a detailed disclosure on contingent liabilities refer to Harmony's annual financial statements for the financial year ended 30 June 2015. Other than discussed below, there were no significant changes in contingencies since 30 June 2015."]
[]
[]
[null,"(a)","Silicosis"]
[]
[null,null,"On 13 May 2016, the Johannesburg High Court ordered the certification of a silicosis class and a tuberculosis (TB) class, which are to proceed as a single class against the mining companies acted in the application. The companies requested leave to appeal to the Supreme Court of Appeal (SCA), which was granted on 24 June 2016. Harmony submitted its notice of appeal in respect of the transmissibility of the general damages order on 22 July 2016."]
[]
[]
[]
[]
[null,null,"Due to the limited information available on the above claim and potential other claims, and the uncertainty of the outcome of the matter, no costs estimation can as yet be made for the possible obligation."]
[]
[]
[12,"Related parties"]
[]
[null,"Key management personnel are those persons having authority and responsibility for planning, directing and controlling the activities of the group, directly or indirectly, including any director (whether executive or otherwise) of the group."]
[]
[]
[null,"(a) ","Movement in shares owned by directors/prescribed officers for the year ended 30 June 2016:"]
[]
[]
[null,"Name of director/prescribed officer",null,null,null,null,null,null,null,null,null,"Shares purchased in open market",null,"Shares sold in open market","Performance shares vested and retained"]
[]
[]
[null,"Frank Abbott (Financial director) 1",null,null,null,null,null,null,null,null,null,300000,null,0,18547]
[null,"Graham Briggs (Chief executive officer) 2",null,null,null,null,null,null,null,null,null,0,null,0,46874]
[null,"Harry \"Mashego\" Mashego (Executive director) 3",null,null,null,null,null,null,null,null,null,0,null,10000,7760]
[null,"Ken Dicks (Independent non-executive director) 4",null,null,null,null,null,null,null,null,null,15000,null,0,"n/a"]
[null,"Johannes van Heerden5",null,null,null,null,null,null,null,null,null,0,null,41337,13153]
[]
[]
[null,"1 Purchased on 15 December 2015."]
[null,"2 Graham Briggs retired on 31 December 2015."]
[null,"3 Sold on 23 March 2016."]
[null,"4 Purchased on 8 December 2015."]
[null,"5 Sold in several tranches during 2016."]
[]
[null,"(b) ","During July 2015, Harmony signed a R150 million guarantee for the ARM Broad Based Economic Empowerment (BBEE) Trust (the Trust), shareholder of the African Rainbow Minerals Limited. The guarantee was for additional security for the Trust's loan due to Nedbank Limited. The guarantee was subsequently cancelled in April 2016 after Harmony advanced R200 million to the Trust as part of the restructuring and refinancing of the Trust’s bank debt. The loan is subordinated and unsecured. The interest rate is market related (3 month JIBAR plus 4.25%) and is receivable on the maturity of the loan on 31 December 2022. At 30 June 2016, the loan to the Trust was tested for impairment and a provision for impairment of R33 million was required. This impairment is included in “Other expenses (net)” in the income statement. The recoverable amount on the Trust loan at 30 June 2016 is R172 million and is recorded in Other non-current receivable in the balance sheet. The fair value measurement is classified as level 3 and is non-recurring."]
[]
[]
[]
[]
[]
[]
[]
[]
[13,"Subsequent events"]
[]
[null,"a)","On 7 July 2016, Harmony repaid the remaining R300 million outstanding on the R1.3 billion Nedbank ZAR facility. "]
[null,"b)","During July 2016, Harmony entered into short term gold forward sale contracts for a total of 432 000 ounces over a period of 24 months. These contracts create cash certainty for approximately 20% of the Group’s total production at an average gold price of R682 000/kg. We will be applying cash flow hedge accounting to these contracts."]
[]
[]
[null,"c)","On 15 August 2016, the board declared a dividend of 50 SA  cents for the year ended 30 June 2016, payable on 19 September 2016."]
[]
[14,"Segment report"]
[]
[null,"The segment report follows below."]
[]
[]
[]
[]
[]
[]
[]
[]
[]
[]
[15,"Reconciliation of segment information to condensed consolidated income statements and balance sheets"]
[]
[null,null,null,null,null,null,null,null,null,null,null,null,null,"Year ended"]
[null,null,null,null,null,null,null,null,null,null,null,null,null,"30 June","30 June "]
[null,null,null,null,null,null,null,null,null,null,null,null,null,2016,"2015"]
[null,"Figures in million",null,null,null,null,null,null,null,null,null,null,null,"(Reviewed)","(Audited)"]
[]
[]
[null,"The \"Reconciliation of segment information to condensed consolidated financial statements\" line item in the segment report is broken down in the following elements, to give a better understanding of the differences between the financial statements and segment report:"]
[]
[]
[]
[null,"Reconciliation of production profit to gross profit"]
[]
[null,"Total segment revenue",null,null,null,null,null,null,null,null,null,null,null,18334,15435]
[null,"Total segment production costs",null,null,null,null,null,null,null,null,null,null,null,-13250,-12632]
[]
[]
[null,"Production profit per segment report",null,null,null,null,null,null,null,null,null,null,null,5084,2803]
[null,"Depreciation",null,null,null,null,null,null,null,null,null,null,null,-2170,-2472]
[null,"Reversal of impairment/(impairment) of assets",null,null,null,null,null,null,null,null,null,null,null,43,-3471]
[null,"Other cost of sales items",null,null,null,null,null,null,null,null,null,null,null,-409,-478]
[]
[]
[null,"Gross profit/(loss) as per income statements1",null,null,null,null,null,null,null,null,null,null,null,2548,-3618]
[]
[null,"1The reconciliation was done up to the first recognisable line item on the income statement. The reconciliation will follow the income statement after that."]
[]
[null,null,null,null,null,null,null,null,null,null,null,null,null,"At","At"]
[null,null,null,null,null,null,null,null,null,null,null,null,null,"30 June","30 June "]
[null,null,null,null,null,null,null,null,null,null,null,null,null,2016,"2015"]
[null,"Figures in million",null,null,null,null,null,null,null,null,null,null,null,"(Reviewed)","(Audited)"]
[]
[]
[null,"Reconciliation of total segment mining assets to consolidated property, plant and equipment"]
[null,"Property, plant and equipment not allocated to a segment"]
[null,"Mining assets ",null,null,null,null,null,null,null,null,null,null,null,657,762]
[null,"Undeveloped property",null,null,null,null,null,null,null,null,null,null,null,5139,5139]
[null,"Other non-mining assets",null,null,null,null,null,null,null,null,null,null,null,168,199]
[null,"Wafi-Golpu assets ",null,null,null,null,null,null,null,null,null,null,null,1785,1188]
[]
[null,null,null,null,null,null,null,null,null,null,null,null,null,7749,7288]
[]
[]
[16,"Review report"]
[]
[null,"These condensed consolidated financial statements for the year ended 30 June 2016 have been reviewed by PricewaterhouseCoopers Inc., who expressed an unmodified review conclusion thereon. A copy of the auditor's review report is available for inspection at the company's registered office, together with the financial statements identified in the auditor's report. "]

{"sheet":"Segment Report (R)","index":7,"n_rows":53,"n_cols":15,"rows_kept":53,"cut":false,"hidden":false,"merged":[[38,0,42,0],[4,13,4,14],[6,1,6,2],[6,3,6,4],[6,5,6,6],[6,7,6,8],[6,9,6,10],[6,11,6,12],[6,13,6,14],[4,1,4,2],[4,3,4,4],[4,5,4,6],[4,7,4,8],[4,9,4,10],[4,11,4,12]]}
["SEGMENT REPORT (RAND/METRIC)"]
["for the year ended 30 June 2016 "]
[]
[]
[null,"Revenue\n30 June",null,"Production cost\n30 June",null,"Production profit/(loss)\n30 June",null,"Mining assets\n30 June",null,"Capital expenditure# \n30 June",null,"Kilograms produced@ \n30 June ",null,"Tonnes milled@ \n30 June "]
[null,2016,2015,2016,2015,2016,2015,2016,2015,2016,2015,2016,2015,2016,2015]
[null,"R million",null,"R million",null,"R million",null,"R million",null,"R million",null,"kg",null,"t'000"]
[]
[]
["South Africa"]
["Underground"]
["Kusasalethu",2078,1939,1816,1996,262,-57,3766,3619,360,463,3863,3953,668,908]
["Doornkop",1480,1220,1047,1092,433,128,2984,2239,208,245,2730,2663,630,603]
["Phakisa",2186,1420,1375,1181,811,239,4246,4307,323,403,3988,3118,686,611]
["Tshepong",2756,1948,1844,1611,912,337,4161,4025,307,313,5031,4278,1088,992]
["Masimong",1318,1118,1038,992,280,126,485,893,110,166,2432,2463,650,670]
["Target 1",1833,1738,1250,1191,583,547,2826,2782,322,296,3387,3824,739,749]
["Bambanani",1617,1330,811,705,806,625,807,821,106,110,3013,2908,232,229]
["Joel",1220,1046,831,770,389,276,728,578,215,182,2278,2258,542,551]
["Unisel",925,770,754,682,171,88,543,594,62,99,1704,1695,424,417]
["Target 3(a)",0,222,0,177,0,45,526,535,0,20,0,483,0,90]
[]
["Surface"]
["All other surface operations ",1601,1338,1272,1092,329,246,448,483,59,51,2972,2927,10985,10418]
[]
[]
["Total South Africa",17014,14089,12038,11489,4976,2600,21520,20876,2072,2348,31398,30570,16644,16238]
[]
[]
["International"]
["Hidden Valley",1320,1346,1212,1143,108,203,650,1384,79,121,2257,2943,1729,1825]
[]
[]
["Total international",1320,1346,1212,1143,108,203,650,1384,79,121,2257,2943,1729,1825]
[]
[]
["Total operations",18334,15435,13250,12632,5084,2803,22170,22260,2151,2469,33655,33513,18373,18063]
[]
["Reconciliation of the segment information to the condensed consolidated financial statements (refer to note 15)"]
[]
[]
[]
[null,0,0,0,0,null,null,7749,7288]
[]
[]
[null,18334,15435,13250,12632,null,null,29919,29548]
[]
[]
["# Capital expenditure for international operations excludes expenditure spend on Wafi-Golpu of R240 million (2015: R119 million)."]
["⁽ᵃ⁾ Target 3 was placed on care and maintenance in October 2014."]
["@ Production statistics are unaudited and not reviewed."]
[]
["The segment report for the year ended 30 June 2015 has been audited. The segment report for the year ended 30 June 2016 has been reviewed."]

{"sheet":"Publish IS (US$)","index":8,"n_rows":79,"n_cols":8,"rows_kept":79,"cut":false,"hidden":false,"merged":[[78,0,80,7],[61,0,62,7],[64,0,64,7],[6,2,6,4],[6,6,6,7]]}
["CONDENSED CONSOLIDATED INCOME STATEMENTS (US$) "]
["(Convenience translation)"]
[]
[]
[]
[]
[null,null,"Six months ended",null,null,null,"Year ended"]
[null,null,"30 June","31 December","30 June ",null,"30 June","30 June"]
[null,null,"2016",2015,"2015",null,"2016","2015"]
["Figures in million",null,"(Unaudited)","(Unaudited)","(Unaudited)",null,"(Unaudited)","(Audited)"]
[]
[]
["Revenue",null,625,639,612,null,1264,1348]
["Cost of sales",null,-505,-588,-903,null,-1090,-1645]
[]
[]
["Production costs",null,-424,-493,-505,null,-914,-1103]
["Amortisation and depreciation",null,-70,-80,-102,null,-150,-216]
["Reversal of impairment/(impairment) of assets",null,3,0,-291,null,3,-285]
["Other items",null,-14,-15,-5,null,-29,-41]
[]
[]
["Gross profit/(loss)",null,120,51,-291,null,174,-297]
["Corporate, administration and other expenditure",null,-15,-13,-16,null,-28,-33]
["Social investment expenditure",null,-2,-2,-3,null,-4,-6]
["Exploration expenditure",null,-6,-7,-7,null,-13,-23]
["Loss on scrapping of property, plant and equipment",null,-4,0,-5,null,-4,-42]
["Foreign exchange translation gain/(loss)",null,39,-59,-10,null,-13,-32]
["Other expenses (net)",null,-2,-1,-1,null,-3,0]
[]
[]
["Operating profit/(loss)",null,130,-31,-333,null,109,-433]
["Profit/(loss) from associates",null,-2,3,-2,null,0,-2]
["Net gain/(loss) on financial instruments",null,2,-1,0,null,1,1]
["Investment income",null,8,8,10,null,17,20]
["Finance cost",null,-9,-10,-11,null,-19,-22]
[]
[]
["Profit/(loss) before taxation",null,129,-31,-336,null,108,-436]
["Taxation",null,-40,-2,50,null,-44,62]
[]
[]
["Normal taxation",null,-8,0,1,null,-8,0]
["Deferred taxation",null,-32,-2,49,null,-36,62]
[]
[]
["Net profit/(loss) for the period",null,89,-33,-286,null,64,-374]
[]
[]
["Attributable to:"]
["Owners of the parent",null,89,-33,-286,null,64,-374]
[]
[]
["Earnings/(loss) per ordinary share (cents)"]
[null,null,null,null,";"]
["Basic earnings/(loss)",null,21,-7,-65,null,15,-86]
["Diluted earnings/(loss)",null,20,-7,-65,null,15,-86]
[]
[]
[]
[]
["The currency conversion average rates for the six months ended June 2016: US$1 = R15.39 (December 2015: US$1 = R13.62, June 2015: US$1 = R11.91). For year ended: June 2016: US$1 = R14.50 (June 2015: US$1 = R11.45)."]
[]
[]
["The income statement for the year ended 30 June 2015 has been extracted from the 2015 annual financial statements."]
[]
[]
[]
[]
[]
[]
[]
[]
[]
[]
[]
["Note on convenience translations"]
[]
["Except where specific statements have been extracted from the 2015 annual financial statements, the requirements of IAS 21, The Effects of the Changes in Foreign Exchange Rates, have not necessarily been applied in the translation of the US Dollar financial statements."]

{"sheet":"Publish Com IS (US$)","index":9,"n_rows":77,"n_cols":9,"rows_kept":77,"cut":false,"hidden":false,"merged":[[46,0,48,8],[53,0,54,0],[73,0,73,6],[53,3,54,3],[53,4,54,4],[53,6,54,6],[53,8,54,8],[0,0,1,8],[18,8,19,8],[7,2,7,4],[7,6,7,8],[36,0,37,8],[14,0,15,1],[14,2,15,2],[14,3,15,3],[14,4,15,4],[14,6,15,6],[14,8,15,8],[18,0,19,1],[18,2,19,2],[18,3,19,3],[18,4,19,4],[18,6,19,6]]}
["CONDENSED CONSOLIDATED STATEMENTS OF COMPREHENSIVE INCOME (US$)"]
[]
["(Convenience translation)"]
[]
[]
[]
[]
[null,null,"Six months ended",null,null,null,"Year ended"]
[null,null,"30 June","31 December","30 June ",null,"30 June",null,"30 June"]
[null,null,"2016",2015,"2015",null,"2016",null,"2015"]
["Figures in million",null,"(Unaudited)","(Unaudited)","(Unaudited)",null,"(Unaudited)",null,"(Audited)"]
[]
[]
["Net profit/(loss) for the period",null,89,-33,-286,null,64,null,-374]
["Other comprehensive income/(loss) for the period, net of income tax",null,-22,35,0,null,10,null,-367.30114268412575]
[]
[]
[]
["Items that may be reclassified subsequently to profit or loss:",null,-22,35,-1,null,10,null,-368]
[]
["Foreign exchange translation",null,-22,35,-1,null,10,null,-368]
[]
["Items that will not be reclassified to profit or loss:",null,0,0,0.67161332265915885,null,0,null,0.69885731587424693]
["Remeasurement of retirement benefit obligation"]
["   Acturial gain recognised during the year",null,0,0,0.67161332265915885,null,0,null,0.69885731587424693]
["   Deferred taxation thereon",null,0,0,0,null,0,null,0]
[]
[]
["Total comprehensive income/(loss) for the period",null,67,2,-286,null,74,null,-741.30114268412581]
[]
[]
["Attributable to:"]
["Owners of the parent",null,67,2,-286,null,74,null,-741.30114268412581]
[]
[]
[]
["The currency conversion average rates for the six months ended June 2016: US$1 = R15.39 (December 2015: US$1 = R13.62, June 2015: US$1 = R11.91). For year ended: June 2016: US$1 = R14.50 (June 2015: US$1 = R11.45)."]
[]
[]
["The statement of comprehensive income for the year ended 30 June 2015 has been extracted from the 2015 annual financial statements."]
[]
[]
[]
[]
[]
[]
["CONDENSED CONSOLIDATED STATEMENTS OF CHANGES IN EQUITY (US$)"]
[]
[]
["for the year ended 30 June 2016 (Convenience translation)"]
[]
[]
[]
["Figures in million",null,null,"Share capital","Other reserves",null,"Accumulated loss",null,"Total"]
[]
[]
["Balance - 30 June 2015",null,null,1924,257,null,-364,null,1817]
["Share-based payments",null,null,0,22,null,0,null,22]
["Reversal of provision for odd lot repurchases",null,null,1,0,null,0,null,1]
["Net profit for the period",null,null,0,0,null,64,null,64]
["Other comprehensive income for the period",null,null,0,10,null,0,null,10]
[]
[]
["Balance - 30 June 2016 (Unaudited)",null,null,1925,289,null,-300,null,1914]
[]
["Balance - 30 June 2014",null,null,4035,-887,null,-223,null,2925]
["Share-based payments",null,null,0,16,null,0,null,16]
["Net loss for the period",null,null,0,0,null,-374,null,-374]
["Other comprehensive income for the period",null,null,0,-367,null,0,null,-367]
[]
[]
["Balance - 30 June 2015 (Audited)",null,null,4035,-1238,null,-597,null,2200]
[]
[]
["The currency conversion closing rates for the period ended 30 June 2016: US$1 = R14.72 (June 2015: US$1 = R12.16)."]
[]
["The statement of changes in equity for the year ended 30 June 2015 has been extracted from the 2015 annual financial statements."]

{"sheet":"Publish BS (US$)","index":10,"n_rows":89,"n_cols":6,"rows_kept":89,"cut":false,"hidden":false,"merged":[[84,0,84,4],[85,0,86,5]]}
["CONDENSED CONSOLIDATED BALANCE SHEETS (US$)"]
["(Convenience translation)"]
[]
[]
[]
[]
[null,null,null,"At","At","At"]
[null,null,null,"30 June","31 December","30 June"]
[null,null,null,2016,2015,2015]
["Figures in million",null,null,"(Unaudited)","(Unaudited)","(Audited)"]
[]
[]
["ASSETS"]
[]
["Non-current assets"]
[]
["Property, plant and equipment",null,null,2033,1927,2430]
["Intangible assets",null,null,59,56,73]
["Restricted cash",null,null,4,4,4]
["Restricted investments",null,null,170,156,196]
["Inventories",null,null,3,2,3]
["Other non-current receivables",null,null,12,5,7]
[]
[]
["Total non-current assets",null,null,2281,2150,2713]
[]
[]
[]
["Current assets"]
[]
["Inventories",null,null,79,81,106]
["Trade and other receivables",null,null,44,42,62]
["Income and mining taxes",null,null,0,1,2]
["Derivative financial assets",null,null,25,0,0]
["Restricted cash ",null,null,1,1,1]
["Cash and cash equivalents",null,null,85,56,88]
[]
[]
["Total current assets",null,null,234,181,259]
[]
[]
["Total assets",null,null,2515,2331,2972]
[]
[]
[]
["EQUITY AND LIABILITIES"]
[]
["Share capital and reserves"]
[]
["Share capital",null,null,1925,1813,4035]
["Other reserves",null,null,289,278,-1238]
["Accumulated loss",null,null,-300,-371,-597]
[]
[]
["Total equity",null,null,1914,1720,2200]
[]
[]
[]
["Non-current liabilities"]
[]
["Deferred tax liabilities",null,null,164,123,157]
["Provision for environmental rehabilitation",null,null,148,151,182]
["Retirement benefit obligation",null,null,11,11,13]
["Other non-current liabilities",null,null,1,3,3]
["Borrowings",null,null,139,198,280]
[null,null,null,null,0]
[null,null,null,null,0]
["Total non-current liabilities",null,null,463,486,635]
[]
[]
[]
["Current liabilities"]
[]
["Borrowings",null,null,20,20,0]
["Income and mining taxes",null,null,3,0,0]
["Trade and other payables",null,null,115,105,137]
[]
[]
["Total current liabilities",null,null,138,125,137]
[]
[]
["Total equity and liabilities",null,null,2515,2331,2972]
[]
[]
[]
["The balance sheet for June 2016 converted at a conversion rate of US$1 = R14.72 (December 2015 : US$1 = R15.62, June 2015 : US$1 = R12.16)."]
[]
[]
["The balance sheet at 30 June 2015 has been extracted from the 2015 annual financial statements."]

{"sheet":"Publish - Cash flow (US$)","index":11,"n_rows":101,"n_cols":11,"rows_kept":101,"cut":false,"hidden":false,"merged":[[53,0,54,10],[56,0,56,10],[6,4,6,6],[34,0,34,1],[31,0,31,1],[13,0,13,1],[6,8,6,10]]}
["CONDENSED CONSOLIDATED CASH FLOW STATEMENTS (US$)"]
["(Convenience translation)"]
[]
[]
[]
[]
[null,null,null,null,"Six months ended",null,null,null,"Year ended"]
[null,null,null,null,"30 June","31 December","30 June ",null,"30 June",null,"30 June"]
[null,null,null,null,"2016",2015,"2015",null,"2016",null,"2015"]
["Figures in million",null,null,null,"(Unaudited)","(Unaudited)","(Unaudited)",null,"(Unaudited)",null,"(Audited)"]
[]
[]
[]
["Cash flow from operating activities"]
["Cash generated by operations",null,null,null,190,127,77,null,321,null,168]
["Interest and dividends received",null,null,null,2,3,4,null,5,null,9]
["Interest paid",null,null,null,-8,-3,-5,null,-10.690290691763883,null,-9]
["Income and mining taxes refunded",null,null,null,-5,1,2,null,-4.4830251288042087,null,8]
[]
[]
["Cash generated by operating activities",null,null,null,179,128,78,null,311,null,176]
[]
[]
["Cash flow from investing activities"]
["(Increase)/decrease in restricted cash",null,null,null,0,0,1,null,-1,null,1]
["Decrease in restricted investments",null,null,null,2,0,3,null,3,null,2]
["(Increase)/decrease in loan to associate",null,null,null,0,1,0,null,0,null,-10]
["Loan to ARM BBEE Trust",null,null,null,-13,0,0,null,-14,null,0]
["Net additions to property, plant and equipment",null,null,null,-82,-86,-120,null,-167.80307905200985,null,-246]
[]
[]
["Cash utilised by investing activities",null,null,null,-93,-85,-116,null,-179.80307905200985,null,-253]
[]
[]
["Cash flow from financing activities"]
["Borrowings raised",null,null,null,0,22,79,null,21,null,80]
["Borrowings repaid",null,null,null,-60,-82,-67,null,-141.04286751391703,null,-65]
[]
[]
["Cash generated/(utilised) by financing activities",null,null,null,-60,-60,12,null,-120.04286751391703,null,15]
[]
[]
["Foreign currency translation adjustments",null,null,null,3,-15,-5,null,-14,null,-22]
[]
[]
["Net increase/(decrease) in cash and cash equivalents",null,null,null,29,-32,-31,null,-3,null,-84]
["Cash and cash equivalents - beginning of period",null,null,null,56,88,119,null,88,null,172]
[]
[]
["Cash and cash equivalents - end of period",null,null,null,85,56,88,null,85,null,88]
[]
[]
[]
["The currency conversion average rates for the six months ended: June 2016: US$1 = R15.39 (December 2015: US$1 = R14.24, June 2015: US$1 = R11.91). For year ended: June 2016: US$1 = R14.50 (June 2015: US$1 = R11.45)."]
[]
[]
["Closing balance translated at closing rates of: June 2016 : US$1 = R14.72 (December 2015 : US$1 = R15.62, June 2015 : US$1 = R12.16)."]
[]
["The cash flow statement for the year ended 30 June 2015 has been extracted from the 2015 annual financial statements."]
[]
[]
[]
[]
[]
[]
[]
[]
[]
[]
[]
[]
[]
[]
[]
[]
[]
[]
[]
[]
[]
[]
[]
[]
[]
[]
[]
[]
[]
[]
[]
[]
[]
[]
[]
[]
[]
[]
[]
[]
[]
[" "]

{"sheet":"Segment Report (US$)","index":12,"n_rows":966,"n_cols":15,"rows_kept":966,"cut":false,"hidden":false,"merged":[[7,11,7,12],[7,13,7,14],[5,1,5,2],[5,3,5,4],[7,1,7,2],[7,3,7,4],[7,5,7,6],[7,7,7,8],[7,9,7,10],[5,5,5,6],[5,7,5,8],[5,9,5,10],[5,11,5,12],[5,13,5,14]]}
["SEGMENT REPORT (US$/IMPERIAL)"]
["for the year ended 30 June 2016 (Convenience translation)"]
[]
[]
[]
[null,"Revenue\n30 June",null,"Production cost\n30 June",null,"Production profit/(loss)\n30 June",null,"Mining assets\n30 June",null,"Capital expenditure# \n30 June",null,"Ounces produced@ \n30 June",null,"Tons milled@ \n30 June"]
[null,2016,2015,2016,2015,2016,2015,2016,2015,2016,2015,2016,2015,2016,2015]
[null,"US$ million",null,"US$ million",null,"US$ million",null,"US$ million",null,"US$ million",null,"oz",null,"t'000"]
[]
["South Africa"]
["Underground"]
["Kusasalethu",143,169,125,174,18,-5,255.88932752610873,298,25,40,124198,127092,736,1001]
["Doornkop",102,107,72,95,30,12,202.75458134304526,184,14,21,87772,85618,695,665]
["Phakisa",151,124,95,103,56,21,288.50400549013744,354,22,35,128217,100246,756,674]
["Tshepong",190,170,127,141,63,29,282.72848960067404,331,21,27,161751,137540,1200,1095]
["Masimong",91,98,72,87,19,11,32.954414192820693,73,8,15,78190,79187,716,739]
["Target 1",126,152,86,104,40,48,192.01891651321912,229,22,26,108895,122944,814,826]
["Bambanani",112,116,56,62,56,54,54.833427327023301,68,7,10,96870,93495,256,253]
["Joel",84,91,57,67,27,24,49.465594912110241,48,15,16,73239,72596,597,607]
["Unisel",64,67,52,60,12,7,36.895354446807502,49,4,9,54785,54495,467,460]
["Target 3(a)",0,19,0,15,0,4,35.740251268914818,44,0,2,0,15529,0,99]
[]
["Surface"]
["All other surface operations ",110,117,88,95,22,22,30.440366099760148,40,4,4,95553,94105,12112,11488]
[]
[]
["Total South Africa",1173,1230,830,1003,343,227,1462.2247287206212,1718,142,205,1009470,982847,18349,17907]
[]
[]
["International"]
["Hidden Valley",91,118,84,100,7,18,44.165709742955571,114,5,11,72565,94619,1906,2012]
[]
[]
["Total international",91,118,84,100,7,18,44.165709742955571,114,5,11,72565,94619,1906,2012]
[]
[]
["Total operations",1264,1348,914,1103,350,245,1506.3904384635769,1832,147,216,1082035,1077466,20255,19919]
[]
[]
["# Capital expenditure for international operations excludes expenditure spend on Wafi-Golpu of US$16 million (2015: US$10 million)."]
["(a) Target 3 was placed on care and maintenance in October 2014."]
["@ Production statistics are unaudited and unreviewed."]
[]
["The segment report for the year ended 30 June 2015 has been audited. The segment report for the year ended 30 June 2016 has not been reviewed or audited."]
[]
[]
[]
[]
[]
[]
[]
[]
[]
[]
[]
[]
[]
[]
[]
[]
[]
[]
[]
[]
[]
[]
[]
[]
[]
[]
[]
[]
[]
[]
[]
[]
[]
[]
[]
[]
[]
[]
[]
[]
[]
[]
[]
[]
[]
[]
[]
[]
[]
[]
[]
[]
[]
[]
[]
[]
[]
[]
[]
[]
[]
[]
[]
[]
[]
[]
[]
[]
[]
[]
[]
[]
[]
[]
[]
[]
[]
[]
[]
[]
[]
[]
[]
[]
[]
[]
[]
[]
[]
[]
[]
[]
[]
[]
[]
[]
[]
[]
[]
[]
[]
[]
[]
[]
[]
[]
[]
[]
[]
[]
[]
[]
[]
[]
[]
[]
[]
[]
[]
[]
[]
[]
[]
[]
[]
[]
[]
[]
[]
[]
[]
[]
[]
[]
[]
[]
[]
[]
[]
[]
[]
[]
[]
[]
[]
[]
[]
[]
[]
[]
[]
[]
[]
[]
[]
[]
[]
[]
[]
[]
[]
[]
[]
[]
[]
[]
[]
[]
[]
[]
[]
[]
[]
[]
[]
[]
[]
[]
[]
[]
[]
[]
[]
[]
[]
[]
[]
[]
[]
[]
[]
[]
[]
[]
[]
[]
[]
[]
[]
[]
[]
[]
[]
[]
[]
[]
[]
[]
[]
[]
[]
[]
[]
[]
[]
[]
[]
[]
[]
[]
[]
[]
[]
[]
[]
[]
[]
[]
[]
[]
[]
[]
[]
[]
[]
[]
[]
[]
[]
[]
[]
[]
[]
[]
[]
[]
[]
[]
[]
[]
[]
[]
[]
[]
[]
[]
[]
[]
[]
[]
[]
[]
[]
[]
[]
[]
[]
[]
[]
[]
[]
[]
[]
[]
[]
[]
[]
[]
[]
[]
[]
[]
[]
[]
[]
[]
[]
[]
[]
[]
[]
[]
[]
[]
[]
[]
[]
[]
[]
[]
[]
[]
[]
[]
[]
[]
[]
[]
[]
[]
[]
[]
[]
[]
[]
[]
[]
[]
[]
[]
[]
[]
[]
[]
[]
[]
[]
[]
[]
[]
[]
[]
[]
[]
[]
[]
[]
[]
[]
[]
[]
[]
[]
[]
[]
[]
[]
[]
[]
[]
[]
[]
[]
[]
[]
[]
[]
[]
[]
[]
[]
[]
[]
[]
[]
[]
[]
[]
[]
[]
[]
[]
[]
[]
[]
[]
[]
[]
[]
[]
[]
[]
[]
[]
[]
[]
[]
[]
[]
[]
[]
[]
[]
[]
[]
[]
[]
[]
[]
[]
[]
[]
[]
[]
[]
[]
[]
[]
[]
[]
[]
[]
[]
[]
[]
[]
[]
[]
[]
[]
[]
[]
[]
[]
[]
[]
[]
[]
[]
[]
[]
[]
[]
[]
[]
[]
[]
[]
[]
[]
[]
[]
[]
[]
[]
[]
[]
[]
[]
[]
[]
[]
[]
[]
[]
[]
[]
[]
[]
[]
[]
[]
[]
[]
[]
[]
[]
[]
[]
[]
[]
[]
[]
[]
[]
[]
[]
[]
[]
[]
[]
[]
[]
[]
[]
[]
[]
[]
[]
[]
[]
[]
[]
[]
[]
[]
[]
[]
[]
[]
[]
[]
[]
[]
[]
[]
[]
[]
[]
[]
[]
[]
[]
[]
[]
[]
[]
[]
[]
[]
[]
[]
[]
[]
[]
[]
[]
[]
[]
[]
[]
[]
[]
[]
[]
[]
[]
[]
[]
[]
[]
[]
[]
[]
[]
[]
[]
[]
[]
[]
[]
[]
[]
[]
[]
[]
[]
[]
[]
[]
[]
[]
[]
[]
[]
[]
[]
[]
[]
[]
[]
[]
[]
[]
[]
[]
[]
[]
[]
[]
[]
[]
[]
[]
[]
[]
[]
[]
[]
[]
[]
[]
[]
[]
[]
[]
[]
[]
[]
[]
[]
[]
[]
[]
[]
[]
[]
[]
[]
[]
[]
[]
[]
[]
[]
[]
[]
[]
[]
[]
[]
[]
[]
[]
[]
[]
[]
[]
[]
[]
[]
[]
[]
[]
[]
[]
[]
[]
[]
[]
[]
[]
[]
[]
[]
[]
[]
[]
[]
[]
[]
[]
[]
[]
[]
[]
[]
[]
[]
[]
[]
[]
[]
[]
[]
[]
[]
[]
[]
[]
[]
[]
[]
[]
[]
[]
[]
[]
[]
[]
[]
[]
[]
[]
[]
[]
[]
[]
[]
[]
[]
[]
[]
[]
[]
[]
[]
[]
[]
[]
[]
[]
[]
[]
[]
[]
[]
[]
[]
[]
[]
[]
[]
[]
[]
[]
[]
[]
[]
[]
[]
[]
[]
[]
[]
[]
[]
[]
[]
[]
[]
[]
[]
[]
[]
[]
[]
[]
[]
[]
[]
[]
[]
[]
[]
[]
[]
[]
[]
[]
[]
[]
[]
[]
[]
[]
[]
[]
[]
[]
[]
[]
[]
[]
[]
[]
[]
[]
[]
[]
[]
[]
[]
[]
[]
[]
[]
[]
[]
[]
[]
[]
[]
[]
[]
[]
[]
[]
[]
[]
[]
[]
[]
[]
[]
[]
[]
[]
[]
[]
[]
[]
[]
[]
[]
[]
[]
[]
[]
[]
[]
[]
[]
[]
[]
[]
[]
[]
[]
[]
[]
[]
[]
[]
[]
[]
[]
[]
[]
[]
[]
[]
[]
[]
[]
[]
[]
[]
[]
[]
[]
[]
[]
[]
[]
[]
[]
[]
[]
[]
[]
[]
[]
[]
[]
[]
[]
[]
[]
[]
[]
[]
[]
[]
[]
[]
[]
[]
[]
[]
[]
[]
[]
[]
[]
[]
[]
[]
[]
[]
[]
[]
[]
[]
[]
[]
[]
[]
[]
[]
[]
[]
[]
[]
[]
[]
[]
[]
[]
[]
[]
[]
[]
[]
[]
[]
[null,null,null,null,"A 10% decrease in the gold price at the reporting date would have resulted in the following additional impairments being recognised in the 2010 and 2009 financial year. This analysis assumes that all other variables remain constant.  The analysis is performed on the same basis for 2009."]
[]
[]
[]
[]
[]
[]
[]
[null,null,null,null,null,null,null,null,9,null,null,null,"President Steyn 2"]
[null,null,null,null,null,null,null,null,140,null,null,null,"Evander 8"]
[]
[]
[]
[]
[]
[null,null,null,null,null,null,null,null,149]

{"sheet":"Publish CIE (US$)","index":13,"n_rows":80,"n_cols":17,"rows_kept":80,"cut":false,"hidden":true,"merged":[[30,1,30,7],[31,1,31,7],[1,1,2,7]]}
[null,null,null,null,{"$f":"#REF!","v":{"$error":"#REF!"}},null,null,null,null,null,{"$f":"#REF!","v":{"$error":"#REF!"}}]
[null,"CONDENSED CONSOLIDATED STATEMENTS OF CHANGES IN EQUITY (US$)"]
[]
[null,"for the year ended 30 June 2016 (Convenience translation)"]
[]
[]
[]
[]
[null,"Figures in million",null,null,"Share capital","Other reserves","Accumulated loss","Total"]
[]
[]
[null,{"$f":"'Publish CIE (R)'!B11","v":"Balance - 30 June 2015"},null,null,{"$f":"ROUNDDOWN(+'Publish CIE (R)'!E11/$E$1,0)","v":{"$error":"#REF!"}},{"$f":"ROUND(+'Publish CIE (R)'!F11/$E$1,0)","v":{"$error":"#REF!"}},{"$f":"ROUND(+'Publish CIE (R)'!G11/$E$1,0)","v":{"$error":"#REF!"}},{"$f":"SUM(E12:G12)","v":{"$error":"#REF!"}}]
["BB210500     ",{"$f":"'Publish CIE (R)'!B12","v":"Share-based payments"},null,null,{"$f":"ROUND(+'Publish CIE (R)'!E12/$E$1,0)","v":{"$error":"#REF!"}},{"$f":"ROUND(+'Publish CIE (R)'!F12/$E$1,0)","v":{"$error":"#REF!"}},{"$f":"ROUND(+'Publish CIE (R)'!G12/$E$1,0)","v":{"$error":"#REF!"}},{"$error":"#REF!"}]
[null,{"$f":"'Publish CIE (R)'!B13","v":"Reversal of provision for odd lot repurchases"},null,null,{"$f":"ROUND(+'Publish CIE (R)'!E13/$E$1,0)","v":{"$error":"#REF!"}},{"$f":"ROUND(+'Publish CIE (R)'!F13/$E$1,0)","v":{"$error":"#REF!"}},{"$f":"ROUND(+'Publish CIE (R)'!G13/$E$1,0)","v":{"$error":"#REF!"}},{"$error":"#REF!"}]
[null,{"$f":"'Publish CIE (R)'!B14","v":"Net profit for the period"},null,null,{"$f":"ROUND(+'Publish CIE (R)'!E14/$E$1,0)","v":{"$error":"#REF!"}},{"$f":"ROUND(+'Publish CIE (R)'!F14/$E$1,0)","v":{"$error":"#REF!"}},{"$f":"ROUND(+'Publish CIE (R)'!G14/$E$1,0)","v":{"$error":"#REF!"}},{"$error":"#REF!"}]
[null,{"$f":"'Publish CIE (R)'!B15","v":"Other comprehensive income for the period"},null,null,{"$f":"ROUND(+'Publish CIE (R)'!E15/$E$1,0)","v":{"$error":"#REF!"}},{"$f":"ROUND(+'Publish CIE (R)'!F15/$E$1,0)","v":{"$error":"#REF!"}},{"$f":"ROUND(+'Publish CIE (R)'!G15/$E$1,0)","v":{"$error":"#REF!"}},{"$error":"#REF!"}]
["BB550000     ",{"$f":"'Publish CIE (R)'!B16","v":"Dividends paid"},null,null,{"$f":"ROUND(+'Publish CIE (R)'!E16/#REF!,0)","v":{"$error":"#REF!"}},{"$f":"ROUND(+'Publish CIE (R)'!F16/#REF!,0)","v":{"$error":"#REF!"}},{"$f":"ROUND(+'Publish CIE (R)'!G16/#REF!,0)","v":{"$error":"#NAME?"}},{"$error":"#REF!"}]
[]
[]
["BB100000     ","Balance - 30 June 2016 (Unaudited)",null,null,{"$f":"SUM(E12:E16)","v":{"$error":"#REF!"}},{"$f":"SUM(F12:F16)","v":{"$error":"#REF!"}},{"$error":"#REF!"},{"$error":"#REF!"}]
[]
[]
[null,{"$f":"'Publish CIE (R)'!B22","v":"Balance - 30 June 2014"},null,null,4035,-887,-223,{"$f":"SUM(E23:G23)","v":2925}]
[null,{"$f":"'Publish CIE (R)'!B23","v":"Share-based payments"},null,null,{"$f":"ROUND('Publish CIE (R)'!E23/'Publish CIE (US$)'!$K$1,0)","v":{"$error":"#REF!"}},16,{"$f":"ROUND('Publish CIE (R)'!G23/'Publish CIE (US$)'!$K$1,0)","v":{"$error":"#REF!"}},{"$f":"ROUND(SUM(E24:G24),0)","v":{"$error":"#REF!"}}]
[null,{"$f":"'Publish CIE (R)'!B24","v":"Net loss for the period"},null,null,{"$f":"ROUND('Publish CIE (R)'!E24/'Publish CIE (US$)'!$K$1,0)","v":{"$error":"#REF!"}},{"$f":"ROUND('Publish CIE (R)'!F24/'Publish CIE (US$)'!$K$1,0)","v":{"$error":"#REF!"}},-374,{"$f":"ROUND(SUM(E25:G25),0)","v":{"$error":"#REF!"}}]
[null,{"$f":"'Publish CIE (R)'!B25","v":"Other comprehensive income for the period"},null,null,{"$f":"ROUND('Publish CIE (R)'!E25/'Publish CIE (US$)'!$K$1,0)","v":{"$error":"#REF!"}},-367,{"$f":"ROUND('Publish CIE (R)'!G25/'Publish CIE (US$)'!$K$1,0)","v":{"$error":"#REF!"}},{"$f":"ROUND(SUM(E26:G26),0)","v":{"$error":"#REF!"}}]
[]
[]
[null,{"$f":"'Publish CIE (R)'!B28","v":"Balance - 30 June 2015 (Audited)"},null,null,{"$f":"SUM(E23:E26)","v":{"$error":"#REF!"}},{"$f":"SUM(F23:F26)","v":{"$error":"#REF!"}},{"$error":"#REF!"},{"$error":"#REF!"}]
[]
[]
[null,"The currency conversion closing rates for the period ended 30 June 2016: US$1 = R14.72 (June 2015: US$1 = R12.16)."]
[]
[null,"The statement of changes in equity for the year ended 30 June 2015 has been extracted from the 2015 annual financial statements."]
[]
[]
[]
[]
[]
[]
[]
[]
[]
[]
[]
[]
[]
[]
[]
[]
[]
[]
[]
[]
[]
[]
[]
[]
[]
[]
[]
[]
[]
[]
[]
[]
[]
[]
[]
[]
[]
[]
[]
[]
[]
[]
[]
[]
[]
[null,null,null,null,null,null,null,null,null,null,null,null,null,null,null,null," "]